Workbook

Sheet паспорт
A1: ПАТ "УКРТРАНСГАЗ" | G1: ПАСПОРТ ФІЗИКО-ХІМІЧНИХ ПОКАЗНИКІВ ПРИРОДНОГО ГАЗУ № 674
A2: Філія "УМГ "ХАРКІВТРАНСГАЗ" | G2: переданого Харківським ЛВУМГ та прийнятого ПАТ "Харківгаз" | AD2: Мерефа
A3: Харківський п/м Харківського ЛВУМГ | G3: Маршрут № 674
A4: Вимірювальна хіміко-аналітична лабораторія
A5: Свідоцтво про атестацію № 100-359/2015 чинне до 20.12.18 р. | K5: з газопроводу ШХ | V5: за період з | X5: 01.04.2017 р. | Z5: по | AA5: 30.04.2017 р.
A7: Число місяця | B7: Компонентний склад, мол. % | N7: Фізико-хімічні показники газу обчислені на основі компонентного складу, 101,325 кПа | X7: Температура точки роси за вологою (Р = 3.92 МПа), °С | Y7: Температура точки роси за вуглеводнями, °С | Z7: Вміст сірководню, г/м3 | AA7: Вміст меркаптанової сірки, г/м3 | AB7: Вміст механічних домішок, г/м3
N8: Густина абсолютна, кг/м3,при 20 °С, | O8: Температура вимірювання/згоряння при 20/25°С
B9: метан, С1 | C9: етан, С2 | D9: пропан, С3 | E9: ізо-бутан, і-С4 | F9: н-бутан, н-С4 | G9: нео-пентан, нео-С5 | H9: ізо-пентан, і-С5 | I9: н-пентан, н-С5 | J9: гексани та вищі, С6+ | K9: кисень, О2 | L9: азот, N2 | M9: діоксид вуглецю, CО2 | O9: Теплота згоряння нижча | R9: Теплота згоряння вища | U9: Число Воббе вище
O10: ккал/м³ | P10: МДж/м³ | Q10: кВт⋅год/м³ | R10: ккал/м³ | S10: МДж/м³ | T10: кВт⋅год/м³ | U10: ккал/м³ | V10: МДж/м³ | W10: кВт⋅год/м³
A11: 1 | O11: =P11*238.8459 -> 8302.283484 | P11: 34.76 | Q11: =P11/3.6 -> 9.655555556 | R11: =S11*238.8459 -> 9188.401773 | S11: 38.47 | T11: =S11/3.6 -> 10.68611111 | U11: =V11*238.8459 -> 11598.3569 | V11: 48.56 | W11: =V11/3.6 -> 13.48888889 | AC11: =SUM(B11:M11)+$K$42+$N$42 -> 0
A12: 2 | O12: =P12*238.8459 -> 8302.283484 | P12: 34.76 | Q12: 9.655555556 | R12: =S12*238.8459 -> 9188.401773 | S12: 38.47 | T12: =S12/3.6 -> 10.68611111 | U12: =V12*238.8459 -> 11598.3569 | V12: 48.56 | W12: =V12/3.6 -> 13.48888889 | AC12: 0
A13: 3 | O13: 8302.283484 | P13: 34.76 | Q13: 9.655555556 | R13: 9188.401773 | S13: 38.47 | T13: 10.68611111 | U13: 11598.3569 | V13: 48.56 | W13: =V13/3.6 -> 13.48888889 | AC13: 0 | AD13: =IF(AC13=100,"ОК"," ") -> 
A14: 4 | B14: 89.1865 | C14: 4.6778 | D14: 1.5807 | E14: 0.1578 | F14: 0.3209 | G14: 0.0033 | H14: 0.0752 | I14: 0.068 | J14: 0.1425 | K14: 0.1123 | L14: 2.3425 | M14: 1.3325 | N14: 0.7582 | O14: 8339.495675 | P14: 34.9158 | Q14: 9.698833333 | R14: 9228.718961 | S14: 38.6388 | T14: 10.733 | U14: 11631.50871 | V14: 48.6988 | W14: 13.52744444 | AC14: 100 | AD14: =IF(AC14=100,"ОК"," ") -> ОК
A15: 5 | O15: 8340.498828 | P15: 34.92 | Q15: 9.7 | R15: 9229.005576 | S15: 38.64 | T15: 10.73333333 | U15: 11631.79533 | V15: 48.7 | W15: 13.52777778 | AC15: 0
A16: 6 | B16: 90.9196 | C16: 4.2372 | D16: 1.1389 | E16: 0.1135 | F16: 0.2181 | G16: 0.0029 | H16: 0.0577 | I16: 0.0523 | J16: 0.1197 | K16: 0.0162 | L16: 0.6718 | M16: 2.4521 | N16: 0.7505 | O16: 8266.767099 | P16: 34.6113 | Q16: 9.61425 | R16: 9152.813734 | S16: 38.321 | T16: 10.64472222 | U16: 11594.89364 | V16: 48.5455 | W16: 13.48486111 | X16: -8.4 | Y16: -2.3 | Z16: 0.0014 | AA16: 0.0002 | AB16: відсутні | AC16: 100 | AD16: ОК
A17: 7 | O17: 8266.767099 | P17: 34.6113 | Q17: 9.61425 | R17: 9152.813734 | S17: 38.321 | T17: 10.64472222 | U17: 11594.89364 | V17: 48.5455 | W17: 13.48486111 | AC17: 0
A18: 8 | O18: 8266.767099 | P18: 34.6113 | Q18: 9.61425 | R18: 9152.813734 | S18: 38.321 | T18: 10.64472222 | U18: 11594.89364 | V18: 48.5455 | W18: 13.48486111 | AC18: 0
A19: 9 | O19: 8266.767099 | P19: 34.6113 | Q19: 9.61425 | R19: 9152.813734 | S19: 38.321 | T19: 10.64472222 | U19: 11594.89364 | V19: 48.5455 | W19: 13.48486111 | AC19: 0
A20: 10 | O20: 8266.767099 | P20: 34.6113 | Q20: =P20/3.6 -> 9.61425 | R20: 9152.813734 | S20: 38.321 | T20: =S20/3.6 -> 10.64472222 | U20: 11594.89364 | V20: 48.5455 | W20: 13.48486111 | AC20: 0
A21: 11 | B21: 90.1548 | C21: 4.4499 | D21: 1.3255 | E21: 0.1316 | F21: 0.2582 | G21: 0.0029 | H21: 0.0631 | I21: 0.0551 | J21: 0.1133 | K21: 0.0679 | L21: 1.7255 | M21: 1.6522 | N21: 0.7512 | O21: 8289.290267 | P21: 34.7056 | Q21: 9.640444444 | R21: 9176.005671 | S21: 38.4181 | T21: 10.67169444 | U21: 11618.73046 | V21: 48.6453 | W21: 13.51258333 | X21: -8.7 | Y21: -2.5 | AC21: 100 | AD21: ОК
A22: 12 | O22: 8289.290267 | P22: 34.7056 | Q22: 9.640444444 | R22: 9176.005671 | S22: 38.4181 | T22: 10.67169444 | U22: 11618.73046 | V22: 48.6453 | W22: 13.51258333 | AC22: 0
A23: 13 | O23: 8289.290267 | P23: 34.7056 | Q23: 9.640444444 | R23: 9176.005671 | S23: 38.4181 | T23: 10.67169444 | U23: 11618.73046 | V23: 48.6453 | W23: 13.51258333 | AC23: 0
A24: 14 | O24: 8289.290267 | P24: 34.7056 | Q24: 9.640444444 | R24: 9176.005671 | S24: 38.4181 | T24: 10.67169444 | U24: 11618.73046 | V24: 48.6453 | W24: 13.51258333 | AC24: 0
A25: 15 | O25: 8289.290267 | P25: 34.7056 | Q25: 9.640444444 | R25: 9176.005671 | S25: 38.4181 | T25: 10.67169444 | U25: 11618.73046 | V25: 48.6453 | W25: 13.51258333 | AC25: 0
A26: 16 | O26: 8289.290267 | P26: 34.7056 | Q26: =P26/3.6 -> 9.640444444 | R26: 9176.005671 | S26: 38.4181 | T26: =S26/3.6 -> 10.67169444 | U26: 11618.73046 | V26: 48.6453 | W26: 13.51258333 | AC26: 0
A27: 17 | O27: 8289.290267 | P27: 34.7056 | Q27: 9.640444444 | R27: 9176.005671 | S27: 38.4181 | T27: 10.67169444 | U27: 11618.73046 | V27: 48.6453 | W27: 13.51258333 | AC27: 0
A28: 18 | O28: 8289.290267 | P28: 34.7056 | Q28: 9.640444444 | R28: 9176.005671 | S28: 38.4181 | T28: 10.67169444 | U28: 11618.73046 | V28: 48.6453 | W28: 13.51258333 | AC28: 0
A29: 19 | O29: 8289.290267 | P29: 34.7056 | Q29: 9.640444444 | R29: 9176.005671 | S29: 38.4181 | T29: 10.67169444 | U29: 11618.73046 | V29: 48.6453 | W29: 13.51258333 | AC29: 0
A30: 20 | B30: 90.3293 | C30: 4.3422 | D30: 1.3043 | E30: 0.1276 | F30: 0.2499 | G30: 0.0028 | H30: 0.0586 | I30: 0.0505 | J30: 0.0817 | K30: 0.0496 | L30: 1.7847 | M30: 1.6187 | N30: 0.7488 | O30: 8264.975754 | P30: 34.6038 | Q30: 9.612166667 | R30: 9149.923699 | S30: 38.3089 | T30: 10.64136111 | U30: 11604.75797 | V30: 48.5868 | W30: 13.49633333 | X30: -9.1 | Y30: -1.9 | AC30: 99.9999 | AD30: =IF(AC30=100,"ОК"," ") -> 
A31: 21 | O31: 8264.975754 | P31: 34.6038 | Q31: 9.612166667 | R31: 9149.923699 | S31: 38.3089 | T31: 10.64136111 | U31: 11604.75797 | V31: 48.5868 | W31: 13.49633333 | AC31: 0
A32: 22 | O32: 8264.975754 | P32: 34.6038 | Q32: 9.612166667 | R32: 9149.923699 | S32: 38.3089 | T32: 10.64136111 | U32: 11604.75797 | V32: 48.5868 | W32: 13.49633333 | AC32: 0
A33: 23 | O33: 8264.975754 | P33: 34.6038 | Q33: =P33/3.6 -> 9.612166667 | R33: 9149.923699 | S33: 38.3089 | T33: =S33/3.6 -> 10.64136111 | U33: 11604.75797 | V33: 48.5868 | W33: 13.49633333 | AC33: 0 | AD33: =IF(AC33=100,"ОК"," ") -> 
A34: 24 | O34: 8264.975754 | P34: 34.6038 | Q34: 9.612166667 | R34: 9149.923699 | S34: 38.3089 | T34: 10.64136111 | U34: 11604.75797 | V34: 48.5868 | W34: 13.49633333 | AC34: 0
A35: 25 | B35: 90.1461 | C35: 4.5975 | D35: 1.3541 | E35: 0.1333 | F35: 0.2618 | G35: 0.0033 | H35: 0.0666 | I35: 0.0601 | J35: 0.1323 | K35: 0.0349 | L35: 1.1025 | M35: 2.1074 | N35: 0.7553 | O35: 8327.410073 | P35: 34.8652 | Q35: 9.684777778 | R35: 9217.445434 | S35: 38.5916 | T35: 10.71988889 | U35: 11639.77278 | V35: 48.7334 | W35: 13.53705556 | X35: -8.6 | Y35: -2.2 | Z35: 0.0015 | AA35: 0.0002 | AB35: відсутні | AC35: 99.9999
A36: 26 | O36: 8327.410073 | P36: 34.8652 | Q36: 9.684777778 | R36: 9217.445434 | S36: 38.5916 | T36: =S36/3.6 -> 10.71988889 | U36: 11639.77278 | V36: 48.7334 | W36: 13.53705556 | AC36: 0
A37: 27 | O37: 8327.410073 | P37: 34.8652 | Q37: 9.684777778 | R37: 9217.445434 | S37: 38.5916 | T37: 10.71988889 | U37: 11639.77278 | V37: 48.7334 | W37: 13.53705556 | AC37: 0
A38: 28 | O38: 8327.410073 | P38: 34.8652 | Q38: 9.684777778 | R38: 9217.445434 | S38: 38.5916 | T38: 10.71988889 | U38: 11639.77278 | V38: 48.7334 | W38: 13.53705556 | AC38: 0
A39: 29 | O39: 8327.410073 | P39: 34.8652 | Q39: =P39/3.6 -> 9.684777778 | R39: 9217.445434 | S39: 38.5916 | T39: =S39/3.6 -> 10.71988889 | U39: 11639.77278 | V39: 48.7334 | W39: 13.53705556 | AC39: 0
A40: 30 | O40: 8327.410073 | P40: 34.8652 | Q40: =P40/3.6 -> 9.684777778 | R40: 9217.445434 | S40: 38.5916 | T40: =S40/3.6 -> 10.71988889 | U40: 11639.77278 | V40: 48.7334 | W40: 13.53705556 | AC40: 0
A41: 31 | AC41: 0
A42: Рівень одоризації відповідає чинним нормативним документам | O42: 8290.017807 | P42: 34.70864607 | Q42: 9.641290574 | R42: 9176.774641 | S42: 38.42131952 | T42: 10.67258876
H43: Середньозважене значення теплоти згоряння:
B46: Начальник Харківського ЛВУМГ | O46: Ханикін С.Ю. | V46: 03.05.2017 р.
C47: Підрозділу підприємства, якому підпорядкована лабораторія | O47: прізвище | R47: підпис | V47: дата
B48: Завідувач лабораторії Харківського п/м Харківського ЛВУМГ | O48: Крупчицький Д.О. | V48: 03.05.2017 р.
C49: Лабораторія, де здійснювалось вимірювання газу | O49: прізвище | R49: підпис | V49: дата
B50: Інженер служби ГВ та М | O50: Семутін С.М. | V50: 03.05.2017 р.
C51: Підрозділу, відповідального за облік газу за маршрутом | O51: прізвище | R51: підпис | V51: дата

Sheet додаток
A2: Додаток до Паспорту фізико-хімічних показників природного газу №674
A4: Область | B4: ГРС, прямий споживач | C4: Cередньозважене значення вищої теплоти згоряння
C5: МДж/м³ | D5: ккал/м³ | E5: кВт*год./м³
A6: Харківська область | B6: ='[1] розрахунок'!C6 -> ГРС Мерефа ПАТ "Харківгаз" м. Мерефа | C6: 38.41381672 | D6: 9174.982627 | E6: 10.67050464
B7: ='[1] розрахунок'!D6 -> ГРС Мерефа ПАТ "Харківгаз" с. Буди | C7: 38.42600454 | D7: 9177.893638 | E7: 10.67389015
A8: Середньозважене значення вищої теплоти згоряння по маршруту № 674 | C8: 38.42131952 | D8: 9176.774641 | E8: 10.67258876
A12: Начальник Харківського ЛВУМГ | D12: Ханикін С.Ю. | F12: 03.05.2017 р.
A13: Підрозділу підприємства, якому підпорядкована лабораторія | D13: прізвище | E13: підпис | F13: дата
A14: Завідувач лабораторії Харківського п/м Харківського ЛВУМГ | D14: Крупчицький Д.О. | F14: 03.05.2017 р.
A15: Лабораторія, де здійснювалось вимірювання газу | D15: прізвище | E15: підпис | F15: дата
A16: Інженер служби ГВ та М | D16: Семутін С.М. | F16: 03.05.2017 р.
A17: Підрозділу, відповідального за облік газу за маршрутом | D17: прізвище | E17: підпис | F17: дата

Sheet variablesList (hidden)
A1: 3 | B1: x:\gaysin | C1: 10, 11, 24, 25, 127, 128, 132, 180, 207, 215 | D1: x:\
B2: x:\Illinci
B3: x:\Talne
